fUST/lending_fUST_20250525
["ID","MTS","AMOUNT","RATE_DAILY","PERIOD"]
[362279972,1748151038339,-477.96617299,0.00016999,2]
[362279973,1748151038348,-289.56781751,0.00016999,2]
[362280202,1748151046370,-210.43218249,0.00016999,2]
[362280203,1748151046380,-500.0,0.00016999,2]
[362280204,1748151046389,-500.0,0.00016999,2]
[362280205,1748151046399,-484.86306395,0.00016999,2]
[362280206,1748151046408,-500.0,0.00016999,2]
[362280207,1748151046417,-500.0,0.00016999,2]
[362280208,1748151046426,-329.75525095,0.00016999,2]
[362280209,1748151046436,-500.0,0.00016999,2]
[362280210,1748151046445,-500.0,0.00016999,2]
[362280211,1748151046454,-500.0,0.00016999,2]
[362280212,1748151046464,-500.0,0.00016999,2]
[362280213,1748151046473,-500.0,0.00016999,2]
[362280214,1748151046482,-500.0,0.00016999,2]
[362280215,1748151046492,-500.0,0.00016999,2]
[362280216,1748151046503,-500.0,0.00016999,2]
[362280217,1748151046513,-500.0,0.00016999,2]
[362280218,1748151046523,-500.0,0.00016999,2]
[362280219,1748151046533,-500.0,0.00016999,2]
[362280220,1748151046542,-500.0,0.00016999,2]
[362280221,1748151046553,-500.0,0.00016999,2]
[362280222,1748151046563,-500.0,0.00016999,2]
[362280223,1748151046572,-500.0,0.00016999,2]
[362280224,1748151046582,-500.0,0.00016999,2]
[362280225,1748151046591,-391.41678221,0.00016999,2]
[362280226,1748151046604,-500.0,0.00016999,2]
[362280227,1748151046613,-500.0,0.00016999,2]
[362280228,1748151046623,-500.0,0.00016999,2]
[362280229,1748151046632,-500.0,0.00016999,2]
[362280230,1748151046644,-500.0,0.00016999,2]
[362280231,1748151046654,-500.0,0.00016999,2]
[362280232,1748151046663,-500.0,0.00016999,2]
[362280233,1748151046674,-500.0,0.00016999,2]
[362280234,1748151046683,-500.0,0.00016999,2]
[362280235,1748151046693,-500.0,0.00016999,2]
[362280236,1748151046703,-500.0,0.00016999,2]
[362280237,1748151046712,-500.0,0.00016999,2]
[362280238,1748151046721,-500.0,0.00016999,2]
[362280239,1748151046731,-500.0,0.00016999,2]
[362280240,1748151046741,-500.0,0.00016999,2]
[362280241,1748151046752,-500.0,0.00016999,2]
[362280242,1748151046764,-500.0,0.00016999,2]
[362280243,1748151046777,-500.0,0.00016999,2]
[362280244,1748151046786,-500.0,0.00016999,2]
[362280245,1748151046797,-500.0,0.00016999,2]
[362280246,1748151046808,-389.14167822,0.00016999,2]
[362280247,1748151046820,-4991.22471641,0.00017,2]
[362280248,1748151046833,-3171.32274694,0.00017,2]
[362280249,1748151046850,-82687.23735313,0.00017,2]
[362280250,1748151046860,-677.77629709,0.000179,2]
[362280251,1748151046869,-467.5339905,0.00018175,2]
[362280252,1748151046878,-420.0,0.00018567,2]
[362280253,1748151046888,-420.0,0.00018567,2]
[362280254,1748151046897,-207.4,0.00019166,2]
[362280255,1748151046906,-180.017924,0.00019171,2]
[362280256,1748151046915,-430.0,0.00019178,2]
[362280257,1748151046925,-200.88091368,0.00019178,2]
[362280258,1748151046934,-430.0,0.00019178,2]
[362280259,1748151046944,-430.0,0.00019178,2]
[362280260,1748151046953,-430.0,0.00019178,2]
[362280261,1748151046962,-432.53943349,0.00019178,2]
[362280262,1748151046971,-430.0,0.00019178,2]
[362280263,1748151046981,-430.0,0.00019178,2]
[362280264,1748151046990,-430.0,0.00019178,2]
[362280265,1748151047000,-430.0,0.00019178,2]
[362280266,1748151047010,-430.0,0.00019178,2]
[362280267,1748151047019,-500.0,0.00019178,2]
[362280268,1748151047028,-567.8,0.00019178,2]
[362280269,1748151047038,-430.0,0.00019178,2]
[362280270,1748151047047,-575.03,0.00019178,2]
[362280271,1748151047057,-450.31,0.00019178,2]
[362280272,1748151047183,-430.0,0.00019178,2]
[362280273,1748151047194,-1220.42,0.00019178,2]
[362280274,1748151047207,-1189.16,0.00019178,2]
[362280275,1748151047219,-562.5,0.00019178,2]
[362280276,1748151047228,-430.0,0.00019178,2]
[362280277,1748151047238,-430.0,0.00019178,2]
[362280278,1748151047247,-430.0,0.00019178,2]
[362280279,1748151047255,-430.0,0.00019178,2]
[362280280,1748151047265,-430.0,0.00019178,2]
[362280281,1748151047275,-430.0,0.00019178,2]
[362280282,1748151047286,-430.0,0.00019178,2]
[362280283,1748151047296,-430.0,0.00019178,2]
[362280284,1748151047307,-430.0,0.00019178,2]
[362280285,1748151047319,-430.0,0.00019178,2]
[362280286,1748151047329,-430.0,0.00019178,2]
[362280287,1748151047339,-1833.02,0.00019178,2]
[362280288,1748151047349,-914.86,0.00019178,2]
[362280289,1748151047359,-430.0,0.00019178,2]
[362280290,1748151047368,-917.56,0.00019178,2]
[362280291,1748151047377,-1898.48,0.00019178,2]
[362280292,1748151047386,-430.0,0.00019178,2]
[362280293,1748151047395,-2414.58,0.00019178,2]
[362280294,1748151047404,-581.89,0.00019178,2]
[362280295,1748151047414,-430.0,0.00019178,2]
[362280296,1748151047423,-1475.12,0.00019178,2]
[362280297,1748151047431,-430.0,0.00019178,2]
[362280298,1748151047441,-430.0,0.00019178,2]
[362280299,1748151047450,-430.0,0.00019178,2]
[362280300,1748151047459,-1264.8,0.00019178,2]
[362280301,1748151047468,-430.0,0.00019178,2]
[362280302,1748151047478,-430.0,0.00019178,2]
[362280303,1748151047487,-430.0,0.00019178,2]
[362280304,1748151047496,-806.23,0.00019178,2]
[362280305,1748151047505,-824.7,0.00019178,2]
[362280306,1748151047515,-1783.27,0.00019178,2]
[362280307,1748151047524,-430.0,0.00019178,2]
[362280308,1748151047534,-769.08,0.00019178,2]
[362280309,1748151047543,-1237.98,0.00019178,2]
[362280310,1748151047552,-563.29,0.00019178,2]
[362280311,1748151047561,-430.0,0.00019178,2]
[362280312,1748151047570,-1283.95,0.00019178,2]
[362280313,1748151047580,-430.0,0.00019178,2]
[362280314,1748151047589,-924.48675506,0.00019352,2]
[362280315,1748151047601,-430.0,0.00019452,2]
[362280316,1748151047610,-430.0,0.00019452,2]
[362280317,1748151047619,-430.0,0.00019452,2]
[362280318,1748151047628,-503.95777038,0.00019452,2]
[362280319,1748151047638,-430.0,0.00019452,2]
[362280320,1748151047647,-407.08089917,0.00019452,2]
[362280321,1748151047657,-567.8,0.00019452,2]
[362280322,1748151047666,-299.79973005,0.00019452,2]
[362280323,1748151047676,-575.03,0.00019452,2]
[362280324,1748151047685,-450.31,0.00019452,2]
[362280325,1748151047693,-430.0,0.00019452,2]
[362280326,1748151047703,-1220.42,0.00019452,2]
[362280327,1748151047711,-1189.16,0.00019452,2]
[362280328,1748151047721,-562.5,0.00019452,2]
[362280329,1748151047730,-430.0,0.00019452,2]
[362280330,1748151047739,-430.0,0.00019452,2]
[362280331,1748151047748,-430.0,0.00019452,2]
[362280332,1748151047757,-430.0,0.00019452,2]
[362280333,1748151047766,-430.0,0.00019452,2]
[362280334,1748151047775,-430.0,0.00019452,2]
[362280335,1748151047785,-430.0,0.00019452,2]
[362280336,1748151047796,-430.0,0.00019452,2]
[362280337,1748151047805,-430.0,0.00019452,2]
[362280338,1748151047814,-430.0,0.00019452,2]
[362280339,1748151047822,-430.0,0.00019452,2]
[362280340,1748151047831,-1833.02,0.00019452,2]
[362280341,1748151047840,-914.86,0.00019452,2]
[362280342,1748151047848,-430.0,0.00019452,2]
[362280343,1748151047858,-917.56,0.00019452,2]
[362280344,1748151047867,-1898.48,0.00019452,2]
[362280345,1748151047876,-430.0,0.00019452,2]
[362280346,1748151047886,-2414.58,0.00019452,2]
[362280347,1748151047895,-581.89,0.00019452,2]
[362280348,1748151047904,-430.0,0.00019452,2]
[362280349,1748151047913,-1475.12,0.00019452,2]
[362280350,1748151047922,-430.0,0.00019452,2]
[362280351,1748151047931,-430.0,0.00019452,2]
[362280352,1748151047941,-430.0,0.00019452,2]
[362280353,1748151047952,-1264.8,0.00019452,2]
[362280354,1748151047962,-430.0,0.00019452,2]
[362280355,1748151047975,-430.0,0.00019452,2]
[362280356,1748151047986,-430.0,0.00019452,2]
[362280357,1748151047996,-806.23,0.00019452,2]
[362280358,1748151048006,-824.7,0.00019452,2]
[362280359,1748151048015,-1783.27,0.00019452,2]
[362280360,1748151048024,-430.0,0.00019452,2]
[362280361,1748151048033,-769.08,0.00019452,2]
[362280362,1748151048043,-1237.98,0.00019452,2]
[362280363,1748151048052,-563.29,0.00019452,2]
[362280364,1748151048062,-430.0,0.00019452,2]
[362280365,1748151048071,-1283.95,0.00019452,2]
[362280366,1748151048080,-285.45419088,0.00019452,2]
[362280367,1748151048089,-180.75,0.00019725,2]
[362280368,1748151048100,-500.0,0.00019725,2]
[362280369,1748151048109,-632.80987812,0.00019725,2]
[362280370,1748151048119,-500.0,0.00019725,2]
[362280371,1748151048128,-208.72216436,0.00019725,2]
[362280372,1748151048138,-525.98529414,0.00019725,2]
[362280373,1748151048147,-500.0,0.00019725,2]
[362280374,1748151048157,-500.0,0.00019725,2]
[362280375,1748151048166,-500.0,0.00019725,2]
[362280376,1748151048176,-500.0,0.00019725,2]
[362280377,1748151048185,-430.0,0.00019726,2]
[362280378,1748151048194,-430.0,0.00019726,2]
[362280379,1748151048204,-430.0,0.00019726,2]
[362280380,1748151048213,-430.0,0.00019726,2]
[362280381,1748151048222,-567.8,0.00019726,2]
[362280382,1748151048231,-575.03,0.00019726,2]
[362280383,1748151048241,-450.31,0.00019726,2]
[362280384,1748151048250,-430.0,0.00019726,2]
[362280385,1748151048260,-1220.42,0.00019726,2]
[362280386,1748151048269,-1189.16,0.00019726,2]
[362280387,1748151048279,-562.5,0.00019726,2]
[362280388,1748151048288,-430.0,0.00019726,2]
[362280389,1748151048298,-430.0,0.00019726,2]
[362280390,1748151048307,-430.0,0.00019726,2]
[362280391,1748151048316,-430.0,0.00019726,2]
[362280392,1748151048326,-430.0,0.00019726,2]
[362280393,1748151048335,-430.0,0.00019726,2]
[362280394,1748151048345,-430.0,0.00019726,2]
[362280395,1748151048355,-430.0,0.00019726,2]
[362280396,1748151048365,-430.0,0.00019726,2]
[362280397,1748151048375,-430.0,0.00019726,2]
[362280398,1748151048385,-559.60182779,0.00019726,2]
[362280399,1748151048395,-1833.02,0.00019726,2]
[362280400,1748151048405,-914.86,0.00019726,2]
[362280401,1748151048414,-430.0,0.00019726,2]
[362280402,1748151048423,-917.56,0.00019726,2]
[362280403,1748151048434,-1898.48,0.00019726,2]
[362280404,1748151048444,-389.67540481,0.00019726,2]
[362280405,1748151048454,-2414.58,0.00019726,2]
[362280406,1748151048463,-581.89,0.00019726,2]
[362280407,1748151048472,-430.0,0.00019726,2]
[362280408,1748151048482,-1475.12,0.00019726,2]
[362280409,1748151048491,-430.0,0.00019726,2]
[362280410,1748151048502,-430.0,0.00019726,2]
[362280411,1748151048512,-430.0,0.00019726,2]
[362280412,1748151048522,-1264.8,0.00019726,2]
[362280413,1748151048531,-430.0,0.00019726,2]
[362280414,1748151048541,-430.0,0.00019726,2]
[362280415,1748151048550,-430.0,0.00019726,2]
[362280416,1748151048559,-806.23,0.00019726,2]
[362280417,1748151048569,-824.7,0.00019726,2]
[362280418,1748151048579,-1783.27,0.00019726,2]
[362280419,1748151048588,-430.0,0.00019726,2]
[362280420,1748151048601,-769.08,0.00019726,2]
[362280421,1748151048611,-1237.98,0.00019726,2]
[362280422,1748151048620,-563.29,0.00019726,2]
[362280423,1748151048630,-430.0,0.00019726,2]
[362280424,1748151048640,-1283.95,0.00019726,2]
[362280425,1748151048649,-707.0,0.00019866,2]
[362280426,1748151048659,-2233.0,0.00019866,2]
[362280427,1748151048669,-961.0,0.00019866,2]
[362280428,1748151048679,-500.0,0.00019981,2]
[362280429,1748151048688,-500.0,0.00019981,2]
[362280430,1748151048698,-500.0,0.00019981,2]
[362280431,1748151048707,-500.0,0.00019981,2]
[362280432,1748151048716,-500.0,0.00019981,2]
[362280433,1748151048726,-500.0,0.00019983,2]
[362280434,1748151048735,-428.67864138,0.00019986,2]
[362280435,1748151048744,-500.0,0.00019986,2]
[362280436,1748151048754,-14077.96458201,0.0002,2]
[362280437,1748151048763,-151.0,0.0002,2]
[362280438,1748151048774,-151.0,0.0002,2]
[362280439,1748151048783,-151.0,0.0002,2]
[362280440,1748151048793,-151.0,0.0002,2]
[362280441,1748151048802,-160.179342,0.0002,2]
[362280442,1748151048811,-160.179342,0.0002,2]
[362280443,1748151048821,-151.0,0.0002,2]
[362280444,1748151048830,-151.0,0.0002,2]
[362280445,1748151048839,-151.0,0.0002,2]
[362280446,1748151048850,-151.0,0.0002,2]
[362280447,1748151048859,-151.0,0.0002,2]
[362280448,1748151048869,-152.377444,0.0002,2]
[362280449,1748151048879,-430.0,0.0002,2]
[362280450,1748151048889,-430.0,0.0002,2]
[362280451,1748151048899,-514.333942,0.0002,2]
[362280452,1748151048908,-514.333942,0.0002,2]
[362280453,1748151048918,-154.689409,0.0002,2]
[362280454,1748151048928,-151.0,0.0002,2]
[362280455,1748151048937,-430.0,0.0002,2]
[362280456,1748151048947,-430.0,0.0002,2]
[362280457,1748151048956,-153.252423,0.0002,2]
[362280458,1748151048966,-1083.333939,0.0002,2]
[362280459,1748151048975,-1083.333939,0.0002,2]
[362280460,1748151048985,-567.8,0.0002,2]
[362280461,1748151048994,-575.03,0.0002,2]
[362280462,1748151049004,-450.31,0.0002,2]
[362280463,1748151049014,-430.0,0.0002,2]
[362280464,1748151049024,-1220.42,0.0002,2]
[362280465,1748151049033,-151.0,0.0002,2]
[362280466,1748151049043,-1189.16,0.0002,2]
[362280467,1748151049052,-562.5,0.0002,2]
[362280468,1748151049061,-430.0,0.0002,2]
[362280469,1748151049071,-430.0,0.0002,2]
[362280470,1748151049080,-430.0,0.0002,2]
[362280471,1748151049090,-430.0,0.0002,2]
[362280472,1748151049100,-430.0,0.0002,2]
[362280473,1748151049109,-430.0,0.0002,2]
[362280474,1748151049119,-430.0,0.0002,2]
[362280475,1748151049128,-430.0,0.0002,2]
[362280476,1748151049138,-430.0,0.0002,2]
[362280477,1748151049148,-151.0,0.0002,2]
[362280478,1748151049157,-430.0,0.0002,2]
[362280479,1748151049167,-1833.02,0.0002,2]
[362280480,1748151049177,-914.86,0.0002,2]
[362280481,1748151049186,-430.0,0.0002,2]
[362280482,1748151049196,-917.56,0.0002,2]
[362280483,1748151049206,-1898.48,0.0002,2]
[362280484,1748151049215,-151.0,0.0002,2]
[362280485,1748151049224,-151.0,0.0002,2]
[362280486,1748151049234,-2414.58,0.0002,2]
[362280487,1748151049244,-581.89,0.0002,2]
[362280488,1748151049254,-430.0,0.0002,2]
[362280489,1748151049263,-1475.12,0.0002,2]
[362280490,1748151049273,-430.0,0.0002,2]
[362280491,1748151049283,-430.0,0.0002,2]
[362280492,1748151049292,-430.0,0.0002,2]
[362280493,1748151049302,-1264.8,0.0002,2]
[362280494,1748151049311,-430.0,0.0002,2]
[362280495,1748151049321,-430.0,0.0002,2]
[362280496,1748151049330,-430.0,0.0002,2]
[362280497,1748151049340,-806.23,0.0002,2]
[362280498,1748151049350,-151.0,0.0002,2]
[362280499,1748151049359,-824.7,0.0002,2]
[362280500,1748151049368,-151.0,0.0002,2]
[362280501,1748151049378,-1783.27,0.0002,2]
[362280502,1748151049387,-430.0,0.0002,2]
[362280503,1748151049397,-769.08,0.0002,2]
[362280504,1748151049406,-1237.98,0.0002,2]
[362280505,1748151049416,-563.29,0.0002,2]
[362280506,1748151049426,-352.82174355,0.0002,2]
[362280507,1748151049435,-1027.0,0.0002,2]
[362280508,1748151049552,-1027.0,0.0002,2]
[362280509,1748151049563,-1027.0,0.0002,2]
[362280510,1748151049572,-1027.0,0.0002,2]
[362280511,1748151049582,-1027.0,0.0002,2]
[362280512,1748151049591,-1027.0,0.0002,2]
[362280513,1748151049606,-1027.0,0.0002,2]
[362280514,1748151049616,-1283.95,0.0002,2]
[362280515,1748151049626,-1027.0,0.0002,2]
[362280516,1748151049635,-1027.0,0.0002,2]
[362280517,1748151049646,-1027.0,0.0002,2]
[362280518,1748151049657,-500.0,0.00020017,2]
[362280519,1748151049667,-500.0,0.00020021,2]
[362280520,1748151049677,-500.0,0.00020021,2]
[362280521,1748151049686,-500.0,0.00020021,2]
[362280522,1748151049696,-402.25855,0.00020031,2]
[362280523,1748151049706,-500.0,0.00020042,2]
[362280524,1748151049715,-924.48675504,0.00020059,2]
[362280525,1748151049726,-500.0,0.00020063,2]
[362280526,1748151049736,-500.0,0.00020084,2]
[362280527,1748151049748,-457.88267623,0.00020102,2]
[362280528,1748151049758,-500.0,0.00020124,2]
[362280529,1748151049768,-186.013361,0.00020187,2]
[362280530,1748151049777,-151.0,0.00020273,2]
[362280531,1748151049786,-293.122698,0.00020273,2]
[362280532,1748151049795,-160.179342,0.00020273,2]
[362280533,1748151049805,-160.179342,0.00020273,2]
[362280534,1748151049814,-151.0,0.00020273,2]
[362280535,1748151049823,-151.0,0.00020273,2]
[362280536,1748151049832,-151.0,0.00020273,2]
[362280537,1748151049842,-151.0,0.00020273,2]
[362280538,1748151049851,-151.0,0.00020273,2]
[362280539,1748151049861,-430.0,0.00020273,2]
[362280540,1748151049871,-430.0,0.00020273,2]
[362280541,1748151049880,-514.333942,0.00020273,2]
[362280542,1748151049892,-514.333942,0.00020273,2]
[362280543,1748151049903,-430.0,0.00020273,2]
[362280544,1748151049913,-430.0,0.00020273,2]
[362280545,1748151049926,-1083.333939,0.00020273,2]
[362280546,1748151049935,-1083.333939,0.00020273,2]
[362280547,1748151049945,-567.8,0.00020273,2]
[362280548,1748151049954,-575.03,0.00020273,2]
[362280549,1748151049963,-450.31,0.00020273,2]
[362280550,1748151049972,-430.0,0.00020273,2]
[362280551,1748151049981,-1220.42,0.00020273,2]
[362280552,1748151049992,-151.0,0.00020273,2]
[362280553,1748151050003,-1189.16,0.00020273,2]
[362280554,1748151050013,-562.5,0.00020273,2]
[362280555,1748151050022,-430.0,0.00020273,2]
[362280556,1748151050032,-430.0,0.00020273,2]
[362280557,1748151050042,-430.0,0.00020273,2]
[362280558,1748151050053,-430.0,0.00020273,2]
[362280559,1748151050062,-430.0,0.00020273,2]
[362280560,1748151050071,-430.0,0.00020273,2]
[362280561,1748151050080,-430.0,0.00020273,2]
[362280562,1748151050090,-430.0,0.00020273,2]
[362280563,1748151050098,-430.0,0.00020273,2]
[362280564,1748151050108,-151.0,0.00020273,2]
[362280565,1748151050117,-430.0,0.00020273,2]
[362280566,1748151050127,-1833.02,0.00020273,2]
[362280567,1748151050136,-914.86,0.00020273,2]
[362280568,1748151050145,-430.0,0.00020273,2]
[362280569,1748151050154,-917.56,0.00020273,2]
[362280570,1748151050164,-1898.48,0.00020273,2]
[362280571,1748151050173,-151.0,0.00020273,2]
[362280572,1748151050183,-151.0,0.00020273,2]
[362280573,1748151050192,-2414.58,0.00020273,2]
[362280574,1748151050201,-581.89,0.00020273,2]
[362280575,1748151050211,-430.0,0.00020273,2]
[362280576,1748151050220,-1475.12,0.00020273,2]
[362280577,1748151050229,-284.39607619,0.00020273,2]
[362280578,1748151050238,-430.0,0.00020273,2]
[362280579,1748151050247,-430.0,0.00020273,2]
[362280580,1748151050256,-1264.8,0.00020273,2]
[362280581,1748151050266,-430.0,0.00020273,2]
[362280582,1748151050275,-393.45407532,0.00020273,2]
[362280583,1748151050285,-430.0,0.00020273,2]
[362280584,1748151050294,-806.23,0.00020273,2]
[362280585,1748151050303,-151.0,0.00020273,2]
[362280586,1748151050312,-824.7,0.00020273,2]
[362280587,1748151050322,-151.0,0.00020273,2]
[362280588,1748151050331,-1783.27,0.00020273,2]
[362280589,1748151050340,-430.0,0.00020273,2]
[362280590,1748151050350,-769.08,0.00020273,2]
[362280591,1748151050359,-1237.98,0.00020273,2]
[362280592,1748151050369,-563.29,0.00020273,2]
[362280593,1748151050378,-1283.95,0.00020273,2]
[362280594,1748151050387,-587.0,0.00020279,2]
[362280595,1748151050397,-587.0,0.00020279,2]
[362280596,1748151050407,-75462.88686581,0.0002044,2]
[362280597,1748151050416,-151.0,0.0002044,2]
[362280598,1748151050425,-152.40558,0.0002044,2]
[362280599,1748151050434,-151.0,0.0002044,2]
[362280600,1748151050444,-151.0,0.0002044,2]
[362280601,1748151050453,-151.0,0.0002044,2]
[362280602,1748151050463,-151.0,0.0002044,2]
[362280603,1748151050472,-160.179342,0.0002044,2]
[362280604,1748151050481,-160.179342,0.0002044,2]
[362280605,1748151050491,-151.0,0.0002044,2]
[362280606,1748151050500,-187.438706,0.0002044,2]
[362280607,1748151050510,-187.438706,0.0002044,2]
[362280608,1748151050519,-170.295157,0.0002044,2]
[362280609,1748151050528,-151.0,0.0002044,2]
[362280610,1748151050538,-158.035538,0.0002044,2]
[362280611,1748151050547,-514.333942,0.0002044,2]
[362280612,1748151050556,-514.333942,0.0002044,2]
[362280613,1748151050565,-1083.333939,0.0002044,2]
[362280614,1748151050575,-1083.333939,0.0002044,2]
[362280615,1748151050585,-151.0,0.0002044,2]
[362280616,1748151050595,-151.0,0.0002044,2]
[362280617,1748151050608,-151.0,0.0002044,2]
[362280618,1748151050617,-151.0,0.0002044,2]
[362280619,1748151050626,-151.0,0.0002044,2]
[362280620,1748151050635,-151.0,0.0002044,2]
[362280621,1748151050646,-1000.0,0.00020529,2]
[362280622,1748151050655,-1006.91548535,0.00020529,2]
[362280623,1748151050664,-1000.0,0.00020529,2]
[362280624,1748151050674,-1000.0,0.00020529,2]
[362280625,1748151050683,-1000.0,0.00020529,2]
[362280626,1748151050693,-1000.0,0.00020531,2]
[362280627,1748151050702,-215.0738,0.00020535,2]
[362280628,1748151050711,-430.0,0.00020547,2]
[362280629,1748151050721,-430.0,0.00020547,2]
[362280630,1748151050730,-514.333942,0.00020547,2]
[362280631,1748151050739,-514.333942,0.00020547,2]
[362280632,1748151050748,-430.0,0.00020547,2]
[362280633,1748151050757,-430.0,0.00020547,2]
[362280634,1748151050767,-1083.333939,0.00020547,2]
[362280635,1748151050777,-1083.333939,0.00020547,2]
[362280636,1748151050787,-567.8,0.00020547,2]
[362280637,1748151050796,-575.03,0.00020547,2]
[362280638,1748151050805,-450.31,0.00020547,2]
[362280639,1748151050815,-430.0,0.00020547,2]
[362280640,1748151050824,-1220.42,0.00020547,2]
[362280641,1748151050834,-1189.16,0.00020547,2]
[362280642,1748151050843,-562.5,0.00020547,2]
[362280643,1748151050852,-390.59122964,0.00020547,2]
[362280644,1748151050861,-430.0,0.00020547,2]
[362280645,1748151050871,-430.0,0.00020547,2]
[362280646,1748151050880,-430.0,0.00020547,2]
[362280647,1748151050889,-430.0,0.00020547,2]
[362280648,1748151050898,-430.0,0.00020547,2]
[362280649,1748151050907,-430.0,0.00020547,2]
[362280650,1748151050916,-475.2226076,0.00020547,2]
[362280651,1748151050926,-430.0,0.00020547,2]
[362280652,1748151050935,-430.0,0.00020547,2]
[362280653,1748151050944,-1833.02,0.00020547,2]
[362280654,1748151050953,-914.86,0.00020547,2]
[362280655,1748151050962,-430.0,0.00020547,2]
[362280656,1748151050971,-917.56,0.00020547,2]
[362280657,1748151050980,-1898.48,0.00020547,2]
[362280658,1748151050989,-2414.58,0.00020547,2]
[362280659,1748151050999,-581.89,0.00020547,2]
[362280660,1748151051008,-430.0,0.00020547,2]
[362280661,1748151051017,-1475.12,0.00020547,2]
[362280662,1748151051027,-430.0,0.00020547,2]
[362280663,1748151051036,-430.0,0.00020547,2]
[362280664,1748151051045,-1264.8,0.00020547,2]
[362280665,1748151051054,-430.0,0.00020547,2]
[362280666,1748151051063,-430.0,0.00020547,2]
[362280667,1748151051073,-806.23,0.00020547,2]
[362280668,1748151051082,-824.7,0.00020547,2]
[362280669,1748151051092,-1783.27,0.00020547,2]
[362280670,1748151051101,-430.0,0.00020547,2]
[362280671,1748151051111,-769.08,0.00020547,2]
[362280672,1748151051119,-1237.98,0.00020547,2]
[362280673,1748151051128,-563.29,0.00020547,2]
[362280674,1748151051138,-1283.95,0.00020547,2]
[362280675,1748151051147,-151.0,0.00020557,2]
[362280676,1748151051156,-501.4788248,0.00020565,2]
[362280677,1748151051165,-1000.0,0.00020569,2]
[362280678,1748151051175,-1000.0,0.00020569,2]
[362280679,1748151051184,-1000.0,0.00020569,2]
[362280680,1748151051193,-151.0,0.00020569,2]
[362280681,1748151051202,-151.0,0.00020569,2]
[362280682,1748151051211,-160.179342,0.0002058,2]
[362280683,1748151051220,-160.179342,0.0002058,2]
[362280684,1748151051229,-151.0,0.0002058,2]
[362280685,1748151051238,-500.0,0.0002058,2]
[362280686,1748151051247,-194.37661371,0.0002059,2]
[362280687,1748151051257,-501.27413488,0.0002061,2]
[362280688,1748151051266,-1000.0,0.00020632,2]
[362280689,1748151051275,-151.0,0.00020632,2]
[362280690,1748151051284,-151.0,0.00020632,2]
[362280691,1748151051293,-151.0,0.00020632,2]
[362280692,1748151051302,-1000.0,0.00020672,2]
[362280693,1748151051311,-924.48675504,0.00020766,2]
[362280694,1748151051321,-151.0,0.00020779,2]
[362280695,1748151051330,-151.0,0.0002082,2]
[362280696,1748151051339,-151.0,0.0002082,2]
[362280697,1748151051348,-187.438706,0.0002082,2]
[362280698,1748151051358,-187.438706,0.0002082,2]
[362280699,1748151051367,-151.0,0.00020821,2]